bitfinex/quotes_BTCUSD_20220218
["timestamp","ask_amount","ask_price","bid_price","bid_amount"]
[1645170197036,0.81652932,40673.0,40672.0,0.00460933]
[1645170197438,0.55543796,40673.0,40672.0,0.00460933]
[1645170197836,0.55543796,40673.0,40672.0,0.00160933]
[1645170198637,0.55543796,40673.0,40672.0,0.00460933]
[1645170200088,0.55543796,40673.0,40672.0,0.00160933]
[1645170200688,0.55543796,40673.0,40672.0,0.00460933]
[1645170201089,0.76441829,40673.0,40672.0,0.00460933]
[1645170201289,0.81441829,40673.0,40672.0,0.00460933]
[1645170201688,0.60527996,40673.0,40672.0,0.00460933]
[1645170201888,0.60527996,40673.0,40672.0,0.00160933]
[1645170202094,0.0136729,40664.0,40661.0,0.00029856]
[1645170202289,0.0136729,40664.0,40659.0,0.00029856]
[1645170202490,0.0136729,40664.0,40658.0,0.00029856]
[1645170202690,0.0136729,40664.0,40661.0,0.003]
[1645170203091,0.0136729,40664.0,40662.0,0.26165035]
[1645170203291,0.0136729,40664.0,40662.0,0.66339756]
[1645170204035,0.0136729,40664.0,40662.0,0.31165035]
[1645170204235,0.0136729,40664.0,40662.0,0.36165035]
[1645170204640,0.0136729,40664.0,40662.0,0.36565035]
[1645170204837,0.0136729,40664.0,40662.0,0.31565035]
[1645170205038,0.33045676,40664.0,40662.0,0.054]
[1645170205240,0.33045676,40664.0,40662.0,0.004]
[1645170205842,0.33045676,40664.0,40659.0,0.00029856]
[1645170206040,0.33045676,40664.0,40658.0,0.10949856]
[1645170206340,0.33045676,40664.0,40659.0,0.54686189]
[1645170206540,0.33045676,40664.0,40659.0,0.54716045]
[1645170206942,0.0136729,40664.0,40663.0,0.00143004]
[1645170207784,0.0136729,40664.0,40663.0,0.00167191]
[1645170209987,0.0136729,40664.0,40663.0,0.00197047]
[1645170211534,0.0136729,40664.0,40663.0,0.00167191]
[1645170212438,0.0136729,40664.0,40663.0,0.00197047]
[1645170213637,0.0136729,40664.0,40663.0,0.00167191]
[1645170216987,0.0136729,40664.0,40663.0,0.00319311]
[1645170219040,0.0136729,40664.0,40663.0,0.00349167]
[1645170221342,0.0136729,40664.0,40663.0,0.00319311]
[1645170223690,0.34045249,40664.0,40663.0,0.00319311]
[1645170224286,0.0136729,40664.0,40663.0,0.00319311]
[1645170225190,0.32019106,40664.0,40663.0,0.00319311]
[1645170225393,0.0136729,40664.0,40663.0,0.00319311]
[1645170226645,0.01355311,40664.0,40663.0,0.00319311]
[1645170230190,0.0128989,40664.0,40663.0,0.00319311]
[1645170231992,0.00756672,40662.0,40661.0,0.00029856]
[1645170232193,0.00756672,40662.0,40660.0,0.06178668]
[1645170234241,0.00756672,40662.0,40660.0,0.00029856]
[1645170234441,0.00756672,40662.0,40659.0,0.05029856]
[1645170235439,0.00756672,40662.0,40659.0,0.00029856]
[1645170235641,0.00756672,40662.0,40659.0,0.30302832]
[1645170235844,0.00756672,40662.0,40659.0,0.35302832]
[1645170236941,0.00756672,40662.0,40661.0,0.00228267]
[1645170237588,0.00756672,40662.0,40661.0,0.00250964]
[1645170238192,0.00846562,40664.0,40661.0,0.00250964]
[1645170238590,0.00346562,40664.0,40661.0,0.00250964]
[1645170240697,0.00346562,40664.0,40661.0,0.26881179]
[1645170240900,0.00346562,40664.0,40661.0,0.26911035]
[1645170241097,0.00346562,40664.0,40661.0,0.31911035]
[1645170241349,0.00346562,40664.0,40662.0,0.0992]
[1645170241542,0.00346562,40664.0,40663.0,0.3]
[1645170241741,0.00346562,40664.0,40663.0,0.39949856]
[1645170241942,0.00346562,40664.0,40663.0,0.40147794]
[1645170242743,0.00346562,40664.0,40663.0,0.4017047]
[1645170245689,0.00346562,40664.0,40663.0,0.5017047]
[1645170245889,0.00346562,40664.0,40663.0,0.5631777]
[1645170246289,0.00346562,40664.0,40663.0,0.5720777]
[1645170247089,0.00346562,40664.0,40663.0,0.56979976]
[1645170251342,0.00346562,40664.0,40663.0,0.50832676]
[1645170251943,0.00346562,40664.0,40663.0,0.50998979]
[1645170254195,0.00346562,40664.0,40663.0,0.57146179]
[1645170255095,0.00346562,40664.0,40663.0,0.27146179]
[1645170255294,0.00346562,40664.0,40663.0,0.17146179]
[1645170256745,0.00346562,40664.0,40663.0,0.17446179]
[1645170256948,0.00346562,40664.0,40663.0,0.17487755]
[1645170257946,0.00346562,40664.0,40663.0,0.17187755]
[1645170258850,0.00346562,40664.0,40663.0,0.17487755]
[1645170260094,0.00346562,40664.0,40663.0,0.47487755]
[1645170260294,0.00346562,40664.0,40663.0,0.27487755]
[1645170260795,0.00346562,40664.0,40663.0,0.27787755]
[1645170260994,0.00346562,40664.0,40663.0,0.57787755]
[1645170262193,0.00346562,40664.0,40663.0,0.57187755]
[1645170262392,0.00335873,40664.0,40663.0,0.57187755]
[1645170270195,0.30964056,40674.0,40663.0,0.57187755]
[1645170270196,0.26487605,40681.0,40665.0,0.95]
[1645170270402,0.1852,40682.0,40670.0,0.061461]
[1645170270599,0.118,40683.0,40672.0,0.7145]
[1645170270901,0.31330963,40689.0,40672.0,0.7145]
[1645170270902,0.20898033,40688.0,40676.0,0.6146]
[1645170271099,0.31330963,40694.0,40677.0,0.0492]
[1645170271100,0.20898033,40690.0,40677.0,0.0492]
[1645170271357,0.32740601,40688.0,40686.0,0.226162]
[1645170271550,0.32740601,40688.0,40679.0,0.35110342]
[1645170271551,0.1382597,40680.0,40679.0,0.35110342]
[1645170271853,0.1382597,40680.0,40679.0,0.70128547]
[1645170272849,0.1382597,40680.0,40679.0,0.70428547]
[1645170273351,0.1382597,40680.0,40679.0,0.75348547]
[1645170273750,0.1382597,40680.0,40679.0,1.05348547]
[1645170274153,0.1382597,40680.0,40679.0,1.05048547]
[1645170274751,0.1382597,40680.0,40679.0,0.75448547]
[1645170275393,0.1382597,40680.0,40679.0,1.05448547]
[1645170275795,0.1382597,40680.0,40679.0,0.75448547]
[1645170275997,0.1382597,40680.0,40679.0,0.75048547]
[1645170276898,0.1382597,40680.0,40679.0,0.75448547]
[1645170277596,0.1382597,40680.0,40679.0,0.75470028]
[1645170278397,0.1382597,40680.0,40679.0,0.51504286]
[1645170279044,0.1382597,40680.0,40679.0,0.81504286]
[1645170279448,0.1382597,40680.0,40679.0,1.1092154]
[1645170281244,0.1382597,40680.0,40679.0,0.51504286]
[1645170281447,0.1382597,40680.0,40679.0,0.51564286]
[1645170282899,0.1382597,40680.0,40679.0,0.78766347]
[1645170286204,0.1382597,40680.0,40679.0,0.68766347]
[1645170287047,0.13603526,40680.0,40679.0,0.68936434]
[1645170288249,0.13603526,40680.0,40679.0,0.41734373]
[1645170288749,0.13603526,40680.0,40679.0,0.51734373]
[1645170289348,0.13603526,40680.0,40679.0,0.85095066]
[1645170290395,0.13603526,40680.0,40679.0,1.15095066]
[1645170291995,0.13603526,40680.0,40679.0,1.14924979]
[1645170297048,0.13603526,40680.0,40679.0,1.15046528]
[1645170297699,0.13603526,40680.0,40679.0,2.45046528]
[1645170298096,0.13603526,40680.0,40679.0,1.15046528]
[1645170298696,0.13603526,40680.0,40679.0,2.45046528]
[1645170300599,0.13603526,40680.0,40679.0,1.15046528]
[1645170300999,0.13603526,40680.0,40679.0,1.15546528]
[1645170302447,0.13603526,40680.0,40679.0,1.14646528]
[1645170306402,0.13603526,40680.0,40679.0,1.15046528]
[1645170307001,0.13603526,40680.0,40679.0,1.15096731]
[1645170307201,0.13603526,40680.0,40679.0,1.14696731]
[1645170309247,0.13603526,40680.0,40679.0,1.17658745]
[1645170310148,0.13603526,40680.0,40679.0,1.18058745]
[1645170310348,0.13593258,40680.0,40679.0,1.18058745]
[1645170311850,0.13593258,40680.0,40679.0,1.17886993]
[1645170312051,0.13593258,40680.0,40679.0,1.17486993]
[1645170312453,0.28770736,40689.0,40680.0,0.65]
[1645170312701,0.00025917,40682.0,40681.0,0.0492]
[1645170313701,0.26861891,40689.0,40681.0,0.11065014]
[1645170313903,0.00025916,40684.0,40681.0,0.0492]
[1645170314702,0.00025916,40684.0,40682.0,0.12289772]
[1645170314906,0.1335,40693.0,40683.0,0.0492]
[1645170315103,0.00025916,40685.0,40683.0,0.510647]
[1645170315302,0.00025916,40685.0,40683.0,0.310647]
[1645170316103,0.1335,40693.0,40683.0,0.314647]
[1645170316354,0.00025915,40686.0,40683.0,0.314647]
[1645170316649,0.00025915,40686.0,40683.0,0.214647]
[1645170316848,0.00025915,40686.0,40683.0,0.314647]
[1645170317048,0.00025915,40686.0,40683.0,0.31608843]
[1645170317249,0.0096,40693.0,40683.0,0.31608843]
[1645170317450,0.00025915,40687.0,40686.0,0.1980135]
[1645170317650,0.36102043,40685.0,40683.0,0.5673658]
[1645170317848,0.36102043,40685.0,40683.0,0.56762321]
[1645170318850,0.36102043,40685.0,40683.0,0.41762321]
[1645170319453,0.36102043,40685.0,40684.0,0.0492]
[1645170319654,0.36102043,40685.0,40684.0,0.07882014]
[1645170321805,0.36102043,40685.0,40684.0,0.13026]
[1645170322404,0.36102043,40685.0,40684.0,0.43026]
[1645170322604,0.36102043,40685.0,40684.0,0.43051729]
[1645170322804,0.36102043,40685.0,40684.0,0.38051729]
[1645170323207,0.36102043,40685.0,40684.0,0.08051729]
[1645170327353,0.36102043,40685.0,40684.0,0.3808524]
[1645170327602,0.36102043,40685.0,40684.0,0.0808524]
[1645170331752,0.36102043,40685.0,40684.0,0.1308524]
[1645170335801,0.36102043,40685.0,40684.0,0.0316524]
[1645170337104,0.36102043,40685.0,40684.0,0.02987743]
[1645170337709,0.36102043,40685.0,40684.0,0.02995488]
[1645170342999,0.36102043,40685.0,40684.0,0.06495488]
[1645170344604,0.36095649,40685.0,40684.0,0.06495488]
[1645170347948,0.36095649,40685.0,40684.0,0.06486295]
[1645170349252,0.36095649,40685.0,40684.0,0.46406295]
[1645170349449,0.36095649,40685.0,40684.0,0.51406295]
[1645170349849,0.36095649,40685.0,40684.0,0.61406295]
[1645170350102,0.36095649,40685.0,40684.0,0.82589306]
[1645170350299,0.36095649,40685.0,40684.0,0.82889306]
[1645170350699,0.36095649,40685.0,40684.0,1.02454757]
[1645170350900,0.36095649,40685.0,40684.0,0.82889306]
[1645170351199,0.36095649,40685.0,40684.0,1.02454757]
[1645170351899,0.36095649,40685.0,40684.0,0.82889306]
[1645170352099,0.36095649,40685.0,40684.0,1.02154757]
[1645170352304,0.36095649,40685.0,40684.0,0.82589306]
[1645170352701,0.36095649,40685.0,40684.0,1.02154757]
[1645170352900,0.36095649,40685.0,40684.0,0.82589306]
[1645170353099,0.36095649,40685.0,40684.0,1.02154757]
[1645170353501,0.36095649,40685.0,40684.0,0.82589306]
[1645170353701,0.36095649,40685.0,40684.0,1.02154757]
[1645170354153,0.36095649,40685.0,40684.0,0.82589306]
[1645170354356,0.36095649,40685.0,40684.0,1.02154757]
[1645170354754,0.36095649,40685.0,40684.0,0.82589306]
[1645170354960,0.36095649,40685.0,40684.0,1.02154757]
[1645170355154,0.36095649,40685.0,40684.0,0.82589306]
[1645170355354,0.36095649,40685.0,40684.0,1.02154757]
[1645170355555,0.36095649,40685.0,40684.0,0.82589306]
[1645170355755,0.36095649,40685.0,40684.0,1.02154757]
[1645170355957,0.36095649,40685.0,40684.0,0.82589306]
[1645170356156,0.36084714,40685.0,40684.0,1.02154757]
[1645170356356,0.36084714,40685.0,40684.0,0.82589306]
[1645170356556,0.36084714,40685.0,40684.0,1.02154757]
[1645170356758,0.36084714,40685.0,40684.0,0.82589306]
[1645170356957,0.36084714,40685.0,40684.0,1.02329355]
[1645170357156,0.36084714,40685.0,40684.0,2.32329355]
[1645170358218,0.36084714,40685.0,40684.0,2.54687737]
[1645170358419,0.36084714,40685.0,40684.0,2.60830623]
[1645170359418,0.36084714,40685.0,40684.0,2.38472241]
[1645170360019,0.36084714,40685.0,40684.0,2.60830529]
[1645170361018,0.36084714,40685.0,40684.0,2.38472241]
[1645170361220,0.26625124,40685.0,40684.0,2.38472241]
[1645170361753,0.09428278,40685.0,40684.0,2.38472241]
[1645170361956,0.09428278,40685.0,40684.0,2.60830299]
[1645170362951,0.09428278,40685.0,40684.0,2.38472241]
[1645170364153,0.09428278,40685.0,40684.0,0.79647792]
[1645170364354,0.09428278,40685.0,40684.0,0.73504906]
[1645170364952,0.09428278,40685.0,40684.0,0.53939455]
[1645170365200,0.09428278,40685.0,40684.0,0.31580893]
[1645170365505,0.09428278,40685.0,40684.0,0.11580893]
[1645170365799,0.09428278,40685.0,40684.0,0.21580893]
[1645170365999,0.09428278,40685.0,40684.0,0.27725093]
[1645170366803,0.09428278,40685.0,40684.0,0.17725093]
[1645170367003,0.09428278,40685.0,40684.0,0.1771988]
[1645170367204,0.09428278,40685.0,40684.0,0.2771988]
[1645170367803,0.05928278,40685.0,40684.0,0.2421988]
[1645170369055,0.05928278,40685.0,40684.0,0.2451988]
[1645170370055,0.05928278,40685.0,40684.0,1.79087407]
[1645170370458,0.05928278,40685.0,40684.0,2.08352858]
[1645170371857,0.05928278,40685.0,40684.0,1.83785331]
[1645170372258,0.05928278,40685.0,40684.0,0.53785331]
[1645170372699,0.05928278,40685.0,40684.0,0.3421988]
[1645170372899,0.0547822,40685.0,40684.0,0.2421988]
[1645170373100,0.0547822,40685.0,40684.0,0.3461988]
[1645170373303,0.0547822,40685.0,40684.0,0.54185331]
[1645170374502,0.0547822,40685.0,40684.0,0.53785331]
[1645170375106,0.0547822,40685.0,40684.0,0.54185331]
[1645170375305,0.0547822,40685.0,40684.0,1.84185331]
[1645170375504,0.0547822,40685.0,40684.0,0.54185331]
[1645170375909,0.0547822,40685.0,40684.0,0.3461988]
[1645170376107,0.0547822,40685.0,40684.0,1.6461988]
[1645170376356,0.0547822,40685.0,40684.0,0.3461988]
[1645170376552,0.0547822,40685.0,40684.0,0.54185331]
[1645170376752,0.0547822,40685.0,40684.0,0.3461988]
[1645170377152,0.0547822,40685.0,40684.0,0.3421988]
[1645170377553,0.0547822,40685.0,40684.0,0.2421988]
[1645170377753,0.0547822,40685.0,40684.0,1.83785331]
[1645170378053,0.0547822,40685.0,40684.0,0.3421988]
[1645170378254,0.0547822,40685.0,40684.0,0.53785331]
[1645170378458,0.0547822,40685.0,40684.0,0.3421988]
[1645170380099,0.00024541,40687.0,40684.0,0.2421988]
[1645170380299,0.00024541,40687.0,40684.0,0.3430988]
[1645170380501,0.00024541,40687.0,40684.0,0.31347866]
[1645170380700,0.00024541,40687.0,40686.0,0.02962014]
[1645170380900,0.00031312,40691.0,40687.0,0.061435]
[1645170381106,0.33637683,40694.0,40688.0,0.17207]
[1645170381107,0.00031312,40692.0,40688.0,0.17207]
[1645170381302,0.00031312,40693.0,40688.0,0.17207]
[1645170381502,0.00031312,40694.0,40688.0,0.17207]
[1645170381701,0.2,40695.0,40688.0,0.22207]
[1645170381901,0.00031312,40694.0,40688.0,0.22207]
[1645170382102,0.2,40695.0,40690.0,0.23120363]
[1645170382302,0.00031312,40694.0,40690.0,0.28040363]
[1645170382501,0.00024557,40694.0,40690.0,0.33040363]
[1645170382702,0.00055869,40694.0,40690.0,0.33040363]
[1645170382902,0.00024557,40694.0,40690.0,0.43040363]
[1645170383203,0.00055869,40694.0,40692.0,0.061428]
[1645170383402,0.20031312,40695.0,40692.0,0.061428]
[1645170383604,0.00055869,40694.0,40692.0,0.061428]
[1645170383855,0.00024557,40694.0,40692.0,0.061428]
[1645170384052,0.00055869,40694.0,40692.0,0.061428]
[1645170384253,0.00024557,40694.0,40692.0,0.061428]
[1645170384451,0.00031312,40694.0,40692.0,0.061428]
[1645170385176,0.20024557,40695.0,40692.0,0.065428]
[1645170385351,0.00031312,40694.0,40692.0,0.065428]
[1645170385551,0.20055869,40695.0,40692.0,0.065428]
[1645170385754,0.2,40695.0,40692.0,0.065428]
[1645170386053,0.20024557,40695.0,40694.0,0.02962014]
[1645170386258,0.05924027,40693.0,40692.0,0.104]
[1645170386454,0.05924027,40693.0,40692.0,0.004]
[1645170387052,0.05924027,40693.0,40690.0,0.1]
[1645170387254,0.05924027,40693.0,40692.0,0.003]
[1645170387908,0.55924027,40693.0,40692.0,0.003]
[1645170388509,0.55924027,40693.0,40688.0,0.05]
[1645170388713,0.55955339,40693.0,40688.0,0.05]
[1645170388914,0.2,40689.0,40688.0,0.05]
[1645170391661,0.2,40689.0,40683.0,0.008]
[1645170391952,0.2,40684.0,40683.0,0.008]
[1645170393153,0.2,40684.0,40679.0,0.401143]
[1645170393154,0.50270081,40684.0,40679.0,0.401143]
[1645170393553,0.2,40681.0,40680.0,0.05]
[1645170395205,0.2,40681.0,40680.0,0.054]
[1645170395605,0.2,40681.0,40680.0,0.004]
[1645170396205,0.46139993,40681.0,40680.0,0.004]
[1645170397506,0.2,40681.0,40680.0,0.004]
[1645170397705,0.2,40681.0,40679.0,0.0006]
[1645170397906,0.20024775,40681.0,40680.0,0.00033758]
[1645170403201,0.20024775,40681.0,40679.0,0.0009418]
[1645170405202,0.20024775,40681.0,40679.0,0.0059418]
[1645170406653,0.20024775,40681.0,40679.0,0.0009418]
[1645170409765,0.20013442,40681.0,40679.0,0.0009418]
[1645170413105,0.20021499,40681.0,40679.0,0.0009418]
[1645170413307,0.20021499,40681.0,40679.0,0.0049418]
[1645170414555,0.20021499,40681.0,40679.0,0.0009418]
[1645170415253,0.20021499,40681.0,40679.0,0.0049418]
[1645170416053,0.20021499,40681.0,40679.0,0.0541418]
[1645170416853,0.20021499,40681.0,40680.0,0.00104424]
[1645170417710,0.20021499,40681.0,40680.0,0.00130045]
[1645170418104,0.20021499,40681.0,40680.0,0.05050045]
[1645170421357,0.20021499,40681.0,40680.0,0.05450045]
[1645170422755,0.20021499,40681.0,40680.0,0.05050045]
[1645170422952,0.20021499,40681.0,40680.0,0.05057758]
[1645170425803,0.44072687,40681.0,40680.0,0.05057758]
[1645170426005,0.44072687,40681.0,40680.0,0.00137758]
[1645170426506,0.44072687,40681.0,40680.0,0.00437758]
[1645170426804,0.74072687,40681.0,40680.0,0.00437758]
[1645170427005,0.74072687,40681.0,40680.0,0.00333334]
[1645170427203,0.74072687,40681.0,40672.0,0.12321705]
[1645170427204,0.00606668,40679.0,40672.0,0.00030605]
[1645170427406,0.00606668,40679.0,40671.0,0.00030605]
[1645170427604,0.2,40673.0,40670.0,0.12160605]
[1645170427805,0.2,40673.0,40671.0,0.00030605]
[1645170428007,0.2,40673.0,40670.0,0.00120605]
[1645170429349,0.2,40673.0,40670.0,0.00030605]
[1645170429551,0.2,40673.0,40669.0,0.49230249]
[1645170431354,0.2,40673.0,40669.0,0.29230249]
[1645170431752,0.2,40673.0,40672.0,0.00166745]
[1645170433106,0.20023989,40673.0,40672.0,0.00198259]
[1645170434108,0.95,40672.0,40665.0,0.29561224]
[1645170434307,0.63152,40671.0,40669.0,0.00031115]
[1645170434506,0.33152,40669.0,40661.0,0.00031115]
[1645170434706,0.3,40669.0,40660.0,0.00031115]
[1645170434904,0.3,40669.0,40661.0,0.0999]
[1645170434905,0.05,40664.0,40661.0,0.0999]
[1645170435105,0.05,40664.0,40657.0,0.00123725]
[1645170435106,0.2,40661.0,40658.0,0.00031115]
[1645170435306,0.2,40661.0,40657.0,0.25707966]
[1645170435614,0.2,40661.0,40657.0,0.25676851]
[1645170436456,0.2,40661.0,40660.0,0.31233053]
[1645170436655,0.2,40661.0,40660.0,0.46153053]
[1645170436856,0.2,40661.0,40660.0,0.56153053]
[1645170438157,0.2,40661.0,40660.0,0.2492]
[1645170438354,0.2,40661.0,40660.0,0.1492]
[1645170438955,0.45,40661.0,40660.0,0.1492]
[1645170439555,0.45,40661.0,40660.0,0.43906614]
[1645170439756,0.45,40661.0,40660.0,0.53906614]
[1645170439959,0.45,40661.0,40660.0,0.2492]
[1645170440902,0.45,40661.0,40660.0,0.1492]
[1645170441304,0.45,40661.0,40660.0,0.14951115]
[1645170443405,0.45,40661.0,40660.0,0.14974431]
[1645170444056,0.45,40661.0,40660.0,0.14947997]
[1645170444756,0.45,40661.0,40660.0,0.09974431]
[1645170445557,0.45,40661.0,40660.0,0.14974431]
[1645170446960,0.45,40661.0,40660.0,0.15149502]
[1645170451862,0.25,40661.0,40660.0,0.71609502]
[1645170452062,0.25,40661.0,40660.0,2.01609502]
[1645170452258,0.25,40661.0,40660.0,2.11609502]
[1645170452860,0.25,40661.0,40660.0,2.3150619]
[1645170453261,0.25,40661.0,40660.0,2.3650619]
[1645170453461,0.3,40670.0,40663.0,0.12291688]
[1645170453664,0.2,40672.0,40668.0,0.67606]
[1645170453860,0.2,40672.0,40669.0,0.0492]
[1645170454262,0.2,40672.0,40669.0,0.04951115]
[1645170455707,0.2,40672.0,40670.0,0.001]
[1645170455906,0.2,40672.0,40671.0,0.0492]
[1645170456309,0.2,40672.0,40671.0,0.04951115]
[1645170457309,0.25947165,40673.0,40671.0,0.05351115]
[1645170457608,0.2,40672.0,40671.0,0.05351115]
[1645170457806,0.2,40672.0,40671.0,0.05373749]
[1645170458207,0.2,40672.0,40671.0,0.56588536]
[1645170458407,0.2,40672.0,40671.0,0.26588536]
[1645170458606,0.2,40672.0,40671.0,0.31588536]
[1645170458863,0.2,40672.0,40671.0,0.31188536]
[1645170459055,0.19975417,40672.0,40671.0,0.31188536]
[1645170459255,0.28800262,40676.0,40671.0,0.31188536]
[1645170459455,0.2,40672.0,40671.0,0.31188536]
[1645170459656,0.2,40672.0,40671.0,0.09973749]
[1645170461460,0.45,40672.0,40671.0,0.09973749]
[1645170462059,0.45,40672.0,40671.0,0.04973749]
[1645170462813,0.45,40672.0,40671.0,0.0492]
[1645170463618,0.45,40672.0,40663.0,0.2152]
[1645170463619,0.09708885,40670.0,40663.0,0.2152]
[1645170463814,0.09708885,40670.0,40667.0,0.0492]
[1645170463815,0.3,40669.0,40667.0,0.0492]
[1645170464018,0.3,40669.0,40663.0,0.0492]
[1645170464414,0.2,40668.0,40663.0,0.0492]
[1645170464615,0.2,40664.0,40663.0,0.0492]
[1645170467560,0.2,40664.0,40663.0,0.0522]
[1645170468761,0.2,40664.0,40663.0,0.0492]
[1645170468962,0.2,40664.0,40663.0,0.04895466]
[1645170469462,0.2,40664.0,40663.0,0.10295466]
[1645170469664,0.2,40664.0,40663.0,0.15295466]
[1645170470717,0.2,40664.0,40663.0,0.14895466]
[1645170471820,0.2,40664.0,40663.0,0.09895466]
[1645170472221,0.2002465,40668.0,40663.0,0.16042766]
[1645170472419,0.2002465,40668.0,40665.0,0.6146]
[1645170472620,0.2002465,40668.0,40666.0,0.0492]
[1645170472820,0.2,40668.0,40666.0,0.0492]
[1645170473021,0.09708885,40670.0,40666.0,0.0492]
[1645170473421,0.09708885,40670.0,40666.0,0.0522]
[1645170473619,0.09708885,40670.0,40667.0,0.061465]
[1645170473866,0.09708885,40670.0,40668.0,0.0492]
[1645170475157,0.09708885,40670.0,40668.0,0.3492]
[1645170475957,0.09708885,40670.0,40668.0,0.0492]
[1645170476860,0.09708885,40670.0,40668.0,0.0992]
[1645170477064,0.09708885,40670.0,40669.0,0.00179765]
[1645170477261,0.09708885,40670.0,40669.0,0.05099765]
[1645170477708,0.09733555,40670.0,40669.0,0.05128105]
[1645170477908,0.09733555,40670.0,40669.0,0.10128105]
[1645170482463,0.09733555,40670.0,40669.0,0.10428105]
[1645170483365,0.09733555,40670.0,40669.0,0.10128105]
[1645170483765,0.09733555,40670.0,40669.0,0.05128105]
[1645170486210,0.09733555,40670.0,40669.0,0.05428105]
[1645170488014,0.09733555,40670.0,40669.0,0.05128105]
[1645170488315,0.09733555,40670.0,40669.0,0.05428105]
[1645170490159,0.09733555,40670.0,40669.0,0.05728105]
[1645170491159,0.09724004,40670.0,40669.0,0.05728105]
[1645170492061,0.09224004,40670.0,40669.0,0.05128105]
[1645170493109,0.09248669,40670.0,40669.0,0.05128105]
[1645170496959,0.09248669,40670.0,40669.0,0.05076802]
[1645170498259,0.09248669,40670.0,40669.0,0.05376802]
[1645170498459,0.09248669,40670.0,40669.0,0.05076802]
[1645170500209,0.09248669,40670.0,40669.0,0.05376802]
[1645170502009,0.09248669,40670.0,40669.0,0.05076802]
[1645170502209,0.09248669,40670.0,40669.0,0.05376802]
[1645170503615,0.09248669,40670.0,40669.0,0.05076802]
[1645170504262,0.09248669,40670.0,40669.0,0.05376802]
[1645170506063,0.09248669,40670.0,40669.0,0.05076802]
[1645170506261,0.09248669,40670.0,40669.0,0.05376802]
[1645170507064,0.09248669,40670.0,40669.0,0.10376802]
[1645170507834,0.09224004,40670.0,40669.0,0.10376802]
[1645170508035,0.09224004,40670.0,40669.0,0.10076802]
[1645170508241,0.09224004,40670.0,40669.0,0.10376802]
[1645170510136,0.09224004,40670.0,40669.0,0.10676802]
[1645170511566,0.09224004,40670.0,40669.0,0.10076802]
[1645170511765,0.09224004,40670.0,40669.0,0.05076802]
[1645170512166,0.09224004,40670.0,40669.0,0.05376802]
[1645170512565,0.09217342,40670.0,40669.0,0.05376802]
[1645170514168,0.09217342,40670.0,40669.0,0.05676802]
[1645170514571,0.09217342,40670.0,40669.0,0.00728462]
[1645170514768,0.11353604,40667.0,40665.0,0.00030653]
[1645170514969,0.11353604,40667.0,40666.0,0.0492]
[1645170515220,0.2,40666.0,40665.0,0.00030653]
[1645170515420,0.2,40666.0,40665.0,0.0492]
[1645170516026,0.2,40666.0,40665.0,0.04906052]
[1645170519064,0.2,40666.0,40665.0,0.04406052]
[1645170521965,0.2,40666.0,40665.0,0.04615749]
[1645170523215,0.20021184,40666.0,40665.0,0.04643841]
[1645170526220,0.20021184,40666.0,40665.0,0.04943841]
[1645170528968,0.20021184,40666.0,40665.0,0.04643841]
[1645170532039,0.20021184,40666.0,40665.0,0.04713741]
[1645170533964,0.20021184,40666.0,40665.0,0.04689641]
[1645170534963,0.20021184,40666.0,40665.0,0.04989641]
[1645170538217,0.20021184,40666.0,40665.0,0.04689641]
[1645170541670,0.10006583,40666.0,40665.0,0.04689641]
[1645170541868,0.11353604,40667.0,40665.0,0.04689641]
[1645170542272,0.2,40666.0,40665.0,0.04689641]
[1645170543571,0.2,40666.0,40665.0,0.04683641]
[1645170548024,0.2,40666.0,40665.0,0.09675813]
[1645170548224,0.2,40666.0,40665.0,0.09975813]
[1645170552179,0.2,40666.0,40665.0,0.09675813]
[1645170554220,0.2,40666.0,40665.0,0.09975813]
[1645170555020,0.2,40666.0,40665.0,0.04975813]
[1645170555620,0.2,40666.0,40665.0,0.04675813]
[1645170560217,0.2,40666.0,40665.0,0.09975813]
[1645170561419,0.2,40666.0,40665.0,0.09675813]
[1645170561815,0.2,40666.0,40665.0,0.04675813]
[1645170564271,0.2,40666.0,40665.0,0.04975813]
[1645170565272,0.2,40666.0,40665.0,0.04675813]
[1645170566272,0.2,40666.0,40665.0,0.04975813]
[1645170567072,0.19992742,40666.0,40665.0,0.05031692]
[1645170567274,0.11353604,40667.0,40665.0,0.05031692]
[1645170567717,0.2,40666.0,40665.0,0.05031692]
[1645170568329,0.2,40666.0,40665.0,0.04731692]
[1645170570419,0.2,40666.0,40665.0,0.05031692]
[1645170571666,0.2,40666.0,40665.0,0.04731692]
[1645170571968,0.2,40666.0,40665.0,0.04563974]
[1645170574267,0.2,40666.0,40665.0,0.04863974]
[1645170575721,0.2,40666.0,40665.0,0.04563974]
[1645170578325,0.2,40666.0,40665.0,0.04863974]
[1645170581866,0.2,40666.0,40665.0,0.04563974]
[1645170582267,0.2,40666.0,40665.0,0.04863974]
[1645170584321,0.2,40666.0,40665.0,0.04563974]
[1645170586480,0.2,40666.0,40665.0,0.04863974]
[1645170586890,0.11353604,40667.0,40665.0,0.04863974]
[1645170587085,0.25,40672.0,40666.0,1.25107547]
[1645170587285,0.00031621,40675.0,40670.0,0.6146]
[1645170587485,0.20023096,40676.0,40674.0,0.6146]
[1645170587486,0.00054717,40676.0,40674.0,0.6146]
[1645170587683,0.2,40680.0,40674.0,0.10911]
[1645170587684,0.00031621,40675.0,40674.0,0.10911]
[1645170587882,0.21868177,40683.0,40675.0,0.786695]
[1645170587883,0.00054719,40676.0,40675.0,0.786695]
[1645170588083,0.00023098,40676.0,40675.0,0.848141]
[1645170588282,0.00023098,40676.0,40675.0,0.998141]
[1645170588886,0.27863269,40682.0,40675.0,0.998141]
[1645170588887,0.00031621,40681.0,40675.0,0.998141]
[1645170589083,0.00023097,40678.0,40677.0,0.061452]
[1645170589282,0.00023097,40678.0,40677.0,0.110652]
[1645170589686,0.00023097,40678.0,40677.0,0.0492]
[1645170590132,0.00031621,40681.0,40677.0,0.0492]
[1645170590331,0.00023097,40680.0,40677.0,0.0492]
[1645170591234,0.00031621,40681.0,40677.0,0.0492]
[1645170591437,0.00023096,40681.0,40677.0,0.0492]
[1645170592233,0.29994908,40681.0,40677.0,0.0492]
[1645170592436,0.29971812,40681.0,40677.0,0.0522]
[1645170592638,0.0544,40676.0,40675.0,0.15]
[1645170592836,0.0544,40676.0,40675.0,0.05]
[1645170593034,0.0544,40676.0,40670.0,0.417]
[1645170593234,0.0544,40676.0,40671.0,0.0492]
[1645170593438,0.0544,40676.0,40665.0,0.2481]
[1645170593636,0.0544,40676.0,40665.0,0.19573163]